fUSD/lending_fUSD_20250523
["ID","MTS","AMOUNT","RATE_DAILY","PERIOD"]
[362073187,1747975650242,-96.60443361,0.00016999,2]
[362073215,1747975746503,-398.25622603,0.00016999,2]
[362073221,1747975762099,-5.13934036,0.00016999,2]
[362073222,1747975762123,-2283.32486217,0.00017,2]
[362073224,1747975765086,-5365.59156041,0.00017,2]
[362073225,1747975766095,-2347.68340587,0.00017,2]
[362073226,1747975766130,-55470.47604236,0.00017,2]
[362073247,1747975811932,250.0,0.00015,2]
[362073249,1747975831768,-1200.0,0.00016999,2]
[362073250,1747975831777,-5218.39012334,0.00017,2]
[362073251,1747975831789,-1838.78603278,0.00017,2]
[362073252,1747975831802,-2380.21952971,0.00017,2]
[362073253,1747975831814,-129874.4979571,0.00017,2]
[362073254,1747975831833,-800.0,0.00017,2]
[362073255,1747975831891,-1107.05190118,0.00017,2]
[362073256,1747975831902,-2095.55944519,0.00017,2]
[362073257,1747975831913,-3200.09805174,0.00017,2]
[362073258,1747975832052,-3805.15,0.00017,2]
[362073815,1747975837736,-799.50121293,0.00017,2]
[362073817,1747975837751,-3417.54088736,0.00017,2]
[362073828,1747975837846,-2697.2854263,0.00017,2]
[362073830,1747975837858,-3319.63338521,0.00017,2]
[362073833,1747975837868,-2889.07462966,0.00017,2]
[362073835,1747975837879,-658.47843359,0.00017,2]
[362073844,1747975837954,-15687.408696,0.00017,2]
[362073851,1747975838010,-3273.19740664,0.00017,2]
[362073853,1747975838021,-94540.95335025,0.00017,2]
[362074033,1747975840038,-9390.56730008,0.00017,2]
[362074039,1747975840093,-3111.32892012,0.00017,2]
[362074042,1747975840105,-65979.9869642,0.00017,2]
[362074044,1747975840116,-888.80808843,0.00017,2]
[362074154,1747975842772,-5900.11867625,0.00017,2]
[362074166,1747975842977,-251713.9505032,0.00017,2]
[362074169,1747975842989,-300.0,0.00017,2]
[362074171,1747975843001,-3482.64937948,0.00017697,2]
[362074173,1747975843013,-2681.7233184,0.00017897,2]
[362074175,1747975843025,-250.0,0.0001845,2]
[362074178,1747975843037,-250.0,0.00018497,2]
[362074180,1747975843050,-200.0,0.00018699,2]
[362074182,1747975843063,-350.0,0.00019,2]
[362074185,1747975843076,-150.0,0.00019139,7]
[362074187,1747975843088,-3482.64937943,0.0001919,2]
[362074189,1747975843101,-2681.72331835,0.0001935,2]
[362074191,1747975843113,-151.0,0.0001992,2]
[362074193,1747975843126,-151.0,0.00019977,2]
[362074195,1747975843137,-151.0,0.00020036,2]
[362074197,1747975843147,-151.0,0.00020045,2]
[362074199,1747975843158,-228.19,0.00020187,2]
[362074202,1747975843171,-3482.64937943,0.00020683,2]
[362074204,1747975843183,-3402.04428836,0.000207,3]
[362074206,1747975843196,-3402.04428829,0.000207,3]
[362074209,1747975843207,-3402.04428829,0.000207,3]
[362074211,1747975843219,-3402.04428829,0.000207,3]
[362074213,1747975843230,-158.38332189,0.00020794,2]
[362074215,1747975843242,-2681.72331835,0.00020803,2]
[362074217,1747975843253,-400.0,0.00021,2]
[362074221,1747975843265,-3402.04428829,0.00021348,5]
[362074224,1747975843276,-651.87,0.00021818,2]
[362074226,1747975843288,-1982.0,0.000219,5]
[362074228,1747975843299,-3482.64937943,0.00022175,2]
[362074230,1747975843310,-3402.04428829,0.0002221,6]
[362074233,1747975843325,-2681.72331835,0.00022256,2]
[362074235,1747975843336,-1000.0,0.0002297,2]
[362074237,1747975843348,-3402.04428829,0.00023072,8]
[362074239,1747975843359,-164.37,0.00023216,2]
[362074242,1747975843371,-3482.64937943,0.00023668,2]
[362074244,1747975843381,-2681.72331835,0.00023709,2]
[362074246,1747975843391,-158.38332189,0.0002379,2]
[362074248,1747975843402,-300.0,0.000239,8]
[362074250,1747975843415,-3402.04428829,0.00023934,10]
[362074252,1747975843427,-651.87,0.00024082,2]
[362074255,1747975843438,-670.04,0.00024179,2]
[362074257,1747975843449,-17088.5,0.00024313,2]
[362074259,1747975843461,-3402.04428829,0.00024797,11]
[362074261,1747975843472,-2080.39096032,0.000248,3]
[362074263,1747975843483,-1002.6106,0.00024899,2]
[362074265,1747975843496,-500.41109607,0.000249,2]
[362074268,1747975843510,-502.09266388,0.000249,2]
[362074270,1747975843520,-55916.5801179,0.000249,3]
[362074272,1747975843531,-207.0,0.00024966,2]
[362074274,1747975843543,-165.0,0.00025,2]
[362074276,1747975843554,-3494.78625737,0.00025151,3]
[362074278,1747975843565,-3482.64937943,0.00025161,2]
[362074281,1747975843578,-2681.72331835,0.00025161,2]
[362074283,1747975843592,-3402.04428829,0.00025659,13]
[362074285,1747975843604,-1000.0,0.00025841,2]
[362074287,1747975843616,-354.87,0.00026168,2]
[362074290,1747975843628,-250.0,0.00026265,2]
[362074292,1747975843639,-651.87,0.00026346,2]
[362074294,1747975843650,-3494.78625737,0.00026511,3]
[362074296,1747975843661,-3402.04428829,0.00026521,15]
[362074298,1747975843671,-2681.72331835,0.00026614,2]
[362074300,1747975843681,-3482.64937943,0.00026654,2]
[362074302,1747975843692,-228.19,0.00026676,2]
[362074305,1747975843703,-158.38332189,0.00026787,2]
[362074307,1747975843713,-3494.78625737,0.00027373,3]
[362074309,1747975843724,-3402.04428829,0.00027383,17]
[362074311,1747975843737,-230.72,0.00028066,2]
[362074313,1747975843753,-2681.72331835,0.00028067,2]
[362074316,1747975843766,-3482.64937943,0.00028146,2]
[362074318,1747975843777,-3494.78625737,0.00028235,3]
[362074320,1747975843788,-3402.04428829,0.00028245,18]
[362074322,1747975843798,-651.87,0.0002861,2]
[362074324,1747975843808,-1000.0,0.00028712,2]
[362074326,1747975843821,-151.0,0.00028831,7]
[362074328,1747975843832,-207.4,0.00028848,2]
[362074330,1747975843843,-164.37,0.0002902,120]
[362074332,1747975843854,-3402.04428829,0.00029107,20]
[362074334,1747975843866,-3494.78625737,0.00029303,3]
[362074337,1747975843877,-156.494447,0.00029303,7]
[362074339,1747975843888,-151.0,0.00029313,7]
[362074341,1747975843900,-151.0,0.00029313,7]
[362074343,1747975843911,-261.851933,0.00029313,7]
[362074345,1747975843921,-151.0,0.00029313,7]
[362074347,1747975843931,-261.851933,0.00029313,7]
[362074349,1747975843941,-151.0,0.00029313,7]
[362074351,1747975843951,-151.0,0.00029313,7]
[362074354,1747975843962,-151.0,0.00029313,7]
[362074356,1747975843973,-151.0,0.00029313,7]
[362074358,1747975843984,-151.0,0.00029313,7]
[362074360,1747975843995,-184.901855,0.00029313,7]
[362074362,1747975844005,-184.901855,0.00029313,7]
[362074364,1747975844016,-475.736298,0.00029313,7]
[362074366,1747975844026,-475.736298,0.00029313,7]
[362074368,1747975844037,-2200.801558,0.00029313,7]
[362074371,1747975844051,-2200.801558,0.00029313,7]
[362074373,1747975844064,-293.980448,0.00029313,7]
[362074375,1747975844075,-293.980448,0.00029313,7]
[362074377,1747975844086,-151.0,0.00029313,7]
[362074379,1747975844098,-1500.0,0.00029323,2]
[362074381,1747975844110,-165.223573,0.00029458,4]
[362074383,1747975844121,-2681.72331835,0.0002952,2]
[362074386,1747975844133,-3494.78625737,0.00029521,3]
[362074388,1747975844144,-151.0,0.00029531,7]
[362074390,1747975844154,-182.421051,0.00029531,7]
[362074392,1747975844164,-158.178117,0.00029531,7]
[362074394,1747975844175,-165.639435,0.00029531,7]
[362074396,1747975844186,-6989.57251474,0.00029536,3]
[362074398,1747975844197,-952.917,0.00029546,2]
[362074400,1747975844208,-1310.0,0.00029546,2]
[362074402,1747975844219,-807.0,0.00029546,2]
[362074404,1747975844229,-779.097,0.00029546,2]
[362074406,1747975844240,-921.0,0.00029546,2]
[362074409,1747975844252,-1470.475,0.00029546,2]
[362074411,1747975844262,-588.667,0.00029546,2]
[362074413,1747975844273,-556.865,0.00029546,2]
[362074415,1747975844283,-1270.979,0.00029546,2]
[362074417,1747975844294,-843.0,0.00029546,2]
[362074419,1747975844307,-4052.0,0.00029546,2]
[362074421,1747975844320,-211.412,0.00029546,2]
[362074424,1747975844331,-1017.134,0.00029546,2]
[362074426,1747975844342,-6838.0,0.00029546,2]
[362074428,1747975844352,-164.909522,0.00029553,7]
[362074430,1747975844363,-164.909522,0.00029553,7]
[362074432,1747975844373,-151.0,0.00029553,7]
[362074434,1747975844383,-151.0,0.00029553,7]
[362074436,1747975844394,-151.0,0.00029553,7]
[362074438,1747975844405,-267.649092,0.00029553,7]
[362074440,1747975844415,-267.649092,0.00029553,7]
[362074442,1747975844426,-700.0,0.000296,10]
[362074445,1747975844437,-3494.78625737,0.0002969,3]
[362074447,1747975844448,-12581.0,0.000297,2]
[362074449,1747975844459,-1000.0,0.000297,10]
[362074451,1747975844470,-3494.78625737,0.0002977,3]
[362074453,1747975844481,-3494.78625737,0.0002978,3]
[362074455,1747975844492,-158.38332189,0.00029784,15]
[362074457,1747975844503,-151.0,0.0002979,7]
[362074459,1747975844514,-151.0,0.0002979,7]
[362074461,1747975844525,-151.0,0.0002979,7]
[362074463,1747975844536,-155.037246,0.0002979,7]
[362074465,1747975844547,-151.0,0.0002979,7]
[362074468,1747975844558,-151.0,0.0002979,7]
[362074470,1747975844572,-184.901855,0.0002979,7]
[362074472,1747975844583,-184.901855,0.0002979,7]
[362074474,1747975844595,-280.838025,0.0002979,7]
[362074476,1747975844605,-151.0,0.0002979,7]
[362074478,1747975844615,-151.0,0.0002979,7]
[362074480,1747975844626,-151.0,0.0002979,7]
[362074482,1747975844636,-475.736298,0.0002979,7]
[362074484,1747975844647,-151.0,0.0002979,7]
[362074486,1747975844657,-475.736298,0.0002979,7]
[362074488,1747975844667,-151.0,0.0002979,7]
[362074490,1747975844677,-151.0,0.0002979,7]
[362074492,1747975844688,-2200.801558,0.0002979,7]
[362074494,1747975844699,-2200.801558,0.0002979,7]
[362074496,1747975844709,-241.895925,0.0002979,7]
[362074498,1747975844721,-241.895925,0.0002979,7]
[362074501,1747975844734,-151.0,0.0002979,7]
[362074503,1747975844744,-6989.57251474,0.0002979,3]
[362074505,1747975844758,-293.980448,0.0002979,7]
[362074507,1747975844768,-293.980448,0.0002979,7]
[362074509,1747975844779,-151.0,0.0002979,7]
[362074511,1747975844789,-326.0,0.000298,5]
[362074513,1747975844800,-23777.49079796,0.000298,2]
[362074515,1747975844814,-633.2,0.000298,2]
[362074519,1747975844837,-5589.30920204,0.000298,2]
[362074521,1747975844848,-171.419182,0.000298,7]
[362074523,1747975844859,-152.345332,0.000298,7]
[362074525,1747975844869,-151.0,0.000298,7]
[362074527,1747975844879,-247.152437,0.000298,7]
[362074529,1747975844891,-153.188757,0.000298,7]
[362074531,1747975844901,-261.851933,0.000298,7]
[362074533,1747975844911,-261.851933,0.000298,7]
[362074535,1747975844921,-151.0,0.000298,7]
[362074537,1747975844932,-1400.0,0.000298,10]
[362074538,1747975844943,-255.345675,0.000298,7]
[362074539,1747975844952,-255.345675,0.000298,7]
[362074540,1747975844962,-151.0,0.000298,7]
[362074541,1747975844972,-151.0,0.000298,7]
[362074542,1747975844984,-153.225085,0.000298,7]
[362074543,1747975844995,-778.774469,0.000298,7]
[362074544,1747975845005,-151.0,0.000298,7]
[362074545,1747975845015,-778.774469,0.000298,7]
[362074546,1747975845025,-151.0,0.000298,7]
[362074547,1747975845036,-152.761826,0.000299,7]
[362074549,1747975845046,-248.68,0.000299,10]
[362074551,1747975845056,-316.80595658,0.000299,2]
[362074553,1747975845068,-1700.0,0.000299,10]
[362074555,1747975845078,-988.72346838,0.00029959,3]
[362074558,1747975845094,-383.540653,0.00029959,3]
[362074560,1747975845108,-2122.52213599,0.00029959,3]
[362074562,1747975845119,-277.47786401,0.00029969,22]
[362074633,1747975845774,-150.0,0.00029546,2]
[362074636,1747975845785,-3482.64937943,0.00029639,2]
[362074638,1747975845796,-152.689778,0.0002979,7]
[362074640,1747975845807,-3097.21715852,0.00029969,22]
[362074642,1747975845829,-27.34926576,0.00029969,22]
[362074644,1747975845845,-501.58492468,0.00029973,5]
[362074646,1747975845857,-248.51049198,0.0002998,3]
[362074649,1747975845869,-3246.27576539,0.0002998,3]
[362074651,1747975845880,-151.0,0.0002999,7]
[362074653,1747975845890,-21908.24043729,0.0002999,3]
[362074659,1747975845941,-151.0,0.00029313,7]
[362074661,1747975845952,-794.0,0.0002999,3]
[362074673,1747975846105,-2814.12848213,0.0002999,3]
[362074678,1747975846165,-590.719992,0.0002999,3]
[362074682,1747975846222,-1490.42905445,0.0002999,3]
[362075031,1747975995468,-222.34,0.00013699,2]
[362075033,1747976263111,1306.0,0.000274,120]
[362075037,1747976506434,418.0,0.000274,120]
[362075038,1747976520337,-195.0,0.000135,2]
[362075040,1747976733143,-222.34,0.00020187,2]
[362075041,1747976733166,-27.74450685,0.00020333,2]
[362075042,1747976743079,-172.25549315,0.00020333,2]
[362075043,1747976743101,-250.0,0.00020478,2]
[362075044,1747976743127,-200.0,0.00020927,2]
[362075045,1747976743148,-250.0,0.00021361,2]
[362075046,1747976743171,-210.07946366,0.000216,2]
[362075070,1747976819097,-184.2749365,0.000216,2]
[362075072,1747976833194,-484.59572304,0.000216,2]
[362075073,1747976833218,-250.0,0.00021683,2]
[362075074,1747976833242,-161.72011444,0.00021765,2]
[362075075,1747976833265,-250.0,0.00021802,2]
[362075076,1747976833286,-151.0,0.00021976,2]
[362075077,1747976833307,-151.0,0.00022013,2]
[362075078,1747976833328,-151.0,0.00022029,2]
[362075079,1747976833349,-129.06371184,0.00022034,2]
[362075081,1747976842132,-21.93628816,0.00022034,2]
[362075082,1747976842153,-151.0,0.00022063,2]
[362075083,1747976842175,-200.0,0.00022206,2]
[362075084,1747976842197,-200.0,0.00022206,2]
[362075085,1747976842217,-303.0,0.0002251,2]
[362075086,1747976842238,-200.0,0.000231,2]
[362075087,1747976842258,-200.0,0.0002351,2]
[362075088,1747976842280,-250.0,0.0002376,2]
[362075089,1747976842300,-200.0,0.0002376,2]
[362075090,1747976842321,-165.94203993,0.00024178,2]
[362075097,1747976953094,-250.0,0.00022241,2]
[362075098,1747976953115,-151.0,0.00022418,2]
[362075099,1747976953134,-151.0,0.00022524,2]
[362075100,1747976953161,-151.0,0.00022619,2]
[362075101,1747976953181,-151.0,0.00022764,2]
[362075102,1747976953202,-2895.0,0.000239,5]
[362075103,1747976953223,-250.0,0.00024405,2]
[362075104,1747976953244,-200.0,0.00024405,2]
[362075105,1747976953264,-109.20731145,0.000245,2]
[362075106,1747976962536,-5045.62908337,0.000245,2]
[362075108,1747977031896,-1604.93530567,0.000245,2]
[362075109,1747977031978,-567.95983599,0.000245,2]
[362075110,1747977031989,-594.27,0.00025091,2]
[362075111,1747977031999,-200.0,0.000251,2]
[362075112,1747977032009,-222.34,0.00026676,2]
[362075113,1747977032019,-1200.0,0.00027213,2]
[362075114,1747977032029,-4000.0,0.00027214,2]
[362075115,1747977032038,-594.27,0.00027355,2]
[362075116,1747977032047,-165.36,0.00027684,2]
[362075117,1747977032056,-150.0,0.00027684,7]
[362075118,1747977032066,-300.0,0.00027717,2]
[362075119,1747977032076,-300.0,0.00027718,2]
[362075120,1747977032085,-1572.15,0.00027718,15]
[362075121,1747977032094,-207.0,0.00027805,2]
[362075122,1747977032103,-1721.52872117,0.000279,18]
[362075123,1747977032114,-173.34,0.00028026,2]
[362075124,1747977032123,-1000.0,0.00028185,2]
[362075125,1747977032132,-172.34115594,0.00028319,2]
[362075126,1747977032140,-1721.52872102,0.00028417,19]
[362075127,1747977032149,-156.0,0.0002877,2]
[362075128,1747977032159,-207.4,0.0002877,2]
[362075129,1747977032172,-1721.52872102,0.00028934,20]
[362075130,1747977032181,-234.92,0.00028942,2]
[362075131,1747977032190,-1721.52872102,0.00029452,21]
[362075132,1747977032199,-157.478717,0.00029458,4]
[362075133,1747977032209,-151.0,0.00029531,7]
[362075134,1747977032218,-150.548,0.00029546,2]
[362075135,1747977032227,-183.081,0.00029546,2]
[362075136,1747977032236,-219.271,0.00029546,2]
[362075137,1747977032246,-1249.52028,0.000296,2]
[362075138,1747977032255,-594.27,0.00029619,2]
[362075139,1747977032264,-588.89911124,0.00029638,2]
[362075140,1747977032273,-151.0,0.0002979,7]
[362075141,1747977032282,-151.0,0.0002979,7]
[362075142,1747977032291,-151.0,0.000298,7]
[362075143,1747977032300,-194.39,0.000299,14]
[362075144,1747977032310,-195.0,0.000299,14]
[362075145,1747977032319,-151.0,0.000299,2]
[362075146,1747977032328,-295.89911561,0.000299,2]
[362075147,1747977032337,-611.28575189,0.000299,2]
[362075148,1747977032346,-1721.52872102,0.00029969,22]
[362075149,1747977032355,-340.81441503,0.00029973,5]
[362075150,1747977032365,-500.8495279,0.00029973,5]
[362075151,1747977032375,-3084.73610568,0.00029987,2]
[362075152,1747977032387,-849.01622086,0.00029987,2]
[362075153,1747977032398,-118.24767346,0.00029987,2]
[362075156,1747977032408,-843.0,0.00029987,2]
[362075159,1747977032417,-881.0,0.00029987,2]
[362075161,1747977032426,-154.0,0.00029987,2]
[362075164,1747977032435,-5310.05962833,0.00029989,2]
[362075173,1747977032474,-1047.45543272,0.00029989,2]
[362075175,1747977032489,-4006.38804285,0.00029989,2]
[362075177,1747977032503,-517.70502891,0.00029989,2]
[362075193,1747977037860,-6838.0,0.00029987,2]
[362075194,1747977037869,-522.60862888,0.00029989,2]
[362075195,1747977037879,-151.0,0.00029989,2]
[362075196,1747977037888,-195.0,0.0002999,31]
[362075197,1747977037898,-195.0,0.0002999,20]
[362075198,1747977037907,-151.0,0.0002999,7]
[362075199,1747977037917,-500.0,0.00029999,2]
[362075200,1747977037926,-500.0,0.00029999,2]
[362075201,1747977037935,-500.0,0.00029999,2]
[362075202,1747977037944,-315.19010499,0.00029999,2]
[362075203,1747977037956,-184.80989501,0.00029999,2]
[362075204,1747977037966,-500.0,0.00029999,2]
[362075205,1747977037975,-7.94010486,0.00029999,2]
[362075206,1747977037993,-503.55473723,0.00029999,2]
[362075207,1747977038003,-500.0,0.00029999,2]
[362075208,1747977038012,-2620.04568488,0.0003,7]
[362075209,1747977038024,-1054.53679713,0.0003,7]
[362075210,1747977038035,-1164.70456356,0.0003,7]
[362075211,1747977038046,-1070.70831661,0.0003,7]
[362075212,1747977038059,-4090.00463782,0.0003,7]
[362075213,1747977038068,-7784.17286218,0.0003,7]
[362075214,1747977038140,-120.2594398,0.0003,7]
[362075215,1747977038151,-575.44595638,0.0003,7]
[362075216,1747977038162,-9827.42884134,0.0003,7]
[362075217,1747977038185,-6444.39187884,0.0003,7]
[362075568,1747977041711,-152.47673935,0.00029999,2]
[362075571,1747977041720,-161.79527809,0.0003,7]
[362075573,1747977041731,-522.91188455,0.0003,7]
[362075575,1747977041746,-2158.34549774,0.0003,7]
[362075720,1747977042970,-27011.39201179,0.0003,7]
[362075723,1747977042983,-1340.6435972,0.0003,7]
[362075739,1747977043133,-1084.38095593,0.0003,7]
[362075741,1747977043146,-21526.968,0.0003,7]
[362075746,1747977043181,-20.47499298,0.0003,7]
[362075748,1747977043192,-8313.35309977,0.0003,7]
[362075759,1747977043294,-927.8025428,0.0003,7]
[362075920,1747977045981,-1849.95414812,0.0003,7]
[362075921,1747977045992,-511.98919795,0.0003,7]
[362075922,1747977046092,-432.32399294,0.0003,7]
[362075923,1747977046102,-151.0,0.0003,7]
[362075924,1747977046111,-151.0,0.0003,7]
[362075925,1747977046121,-293.980448,0.0003,7]
[362075926,1747977046131,-293.980448,0.0003,7]
[362075927,1747977046140,-151.0,0.0003,7]
[362075928,1747977046150,-157.254913,0.0003,7]
[362075929,1747977046159,-157.888786,0.0003,7]
[362075930,1747977046171,-5490.0930387,0.00030015,2]
[362075931,1747977046182,-611.28575189,0.00030022,2]
[362075932,1747977046191,-1315.545,0.00030036,2]
[362075933,1747977046201,-500.0,0.00030036,2]
[362075934,1747977046211,-3759.14762147,0.00030036,2]
[362075935,1747977046224,-21999.14337853,0.00030036,2]
[362075936,1747977046234,-1000.0,0.00030036,2]
[362075937,1747977046244,-2500.0,0.00030036,2]
[362075938,1747977046254,-172.04801024,0.00030036,2]
[362075939,1747977046263,-429.59247178,0.00030036,2]
[362075940,1747977046272,-1000.0,0.00030135,2]
[362075941,1747977046281,-1000.0,0.00030135,2]
[362075942,1747977046290,-1000.0,0.00030135,2]
[362075943,1747977046299,-1000.0,0.00030135,2]
[362075944,1747977046309,-1000.0,0.00030135,2]
[362075945,1747977046318,-1000.0,0.00030135,2]
[362075946,1747977046327,-1000.0,0.00030135,2]
[362075947,1747977046336,-519.21613935,0.00030135,2]
[362075948,1747977046349,-480.78386065,0.00030135,2]
[362075949,1747977046358,-447.70745638,0.00030135,2]
[362076629,1747977354595,-230.49,0.00013699,2]
[362076630,1747977619487,-199.01742395,0.00015,2]
[362076631,1747977622199,-50.98257605,0.00015,2]
[362076632,1747977667864,21821.373765,7.945e-05,2]
[362076633,1747977790082,44872.93062262,0.000274,120]
[362076635,1747977878310,150.0,0.0001401,5]
[362076637,1747977955225,599.84197639,6.94e-05,2]
[362076655,1747978034297,-268.3364373,0.00016999,2]
[362076656,1747978050136,-302.968421,0.00016913,2]
[362076657,1747978050159,-31.6635627,0.00016999,2]
[362076658,1747978050183,-300.0,0.00017,2]
[362076659,1747978050206,-1276.90827147,0.00017,2]
[362076660,1747978071961,4288.72721706,0.00013,2]
[362076664,1747978095905,297.9791778,0.000125,2]
[362076666,1747978122820,-369.01742395,0.00013368,2]
[362076667,1747978124981,-121.32127256,0.00013368,2]
[362076677,1747978232107,-362.89780162,0.000169,2]
[362076678,1747978232117,-1200.0,0.00016999,2]
[362076679,1747978232127,-4369.10219833,0.00017,2]
[362076680,1747978232139,-2249.999995,0.00017,2]
[362076681,1747978232173,-1184.59059147,0.00017,2]
[362076682,1747978232290,-5209.33225229,0.00017,2]
[362076683,1747978232302,-551.86568685,0.00017,2]
[362076684,1747978232313,-2122.00628132,0.00017,2]
[362076685,1747978232352,-905.29140986,0.00017,2]
[362076691,1747978237980,-300.0,0.00016999,2]
[362076692,1747978237990,-557.60533835,0.00017,2]
[362076693,1747978238037,-819.09999995,0.00017,2]
[362076694,1747978238207,-1113.25646616,0.00017,2]
[362076927,1747978240638,-7974.1684999,0.00017,2]
[362076929,1747978240650,-797.6518777,0.00017,2]
[362076931,1747978240661,-627.61108775,0.00017,2]
[362077168,1747978243159,-53054.64277622,0.00017,2]
[362077186,1747978243329,-16969.67294155,0.00017,2]
[362077188,1747978243339,-170736.00050936,0.00017,2]
[362077190,1747978243348,-484.0,0.00018659,2]
[362077192,1747978243358,-350.0,0.00019,2]
[362077194,1747978243367,-230.49,0.00020187,2]
[362077196,1747978243376,-1545.64582152,0.000208,4]
[362077198,1747978243384,-1545.64582138,0.000208,4]
[362077200,1747978243394,-1545.64582138,0.000208,4]
[362077202,1747978243402,-151.0,0.00021362,2]
[362077204,1747978243411,-1545.64582138,0.00021383,5]
[362077206,1747978243421,-1545.64582138,0.0002221,6]
[362077208,1747978243430,-250.88725067,0.0002233,2]
[362077210,1747978243439,-1459.0,0.000227,3]
[362077212,1747978243448,-573.0,0.00022991,2]
[362077214,1747978243457,-1545.64582138,0.00023038,8]
[362077215,1747978243467,-5561.0,0.000234,5]
[362077218,1747978243476,-1545.64582138,0.00023866,10]
[362077220,1747978243486,-334.61053801,0.00024658,2]
[362077223,1747978243495,-1545.64582138,0.00024693,11]
[362077224,1747978243505,-19999.999999,0.00025,2]
[362077227,1747978243514,-1545.64582138,0.00025521,13]
[362077229,1747978243523,-571.66,0.00025795,2]
[362077230,1747978243532,-1545.64582138,0.00026348,14]
[362077233,1747978243541,-230.49,0.00026676,2]
[362077234,1747978243551,-1000.0,0.00026723,2]
[362077237,1747978243560,-1545.64582138,0.00027176,16]
[362077238,1747978243569,-250.0,0.00027431,2]
[362077240,1747978243579,-173.34,0.0002754,2]
[362077242,1747978243588,-1545.64582138,0.00028003,18]
[362077245,1747978243597,-571.66,0.00028059,2]
[362077247,1747978243610,-250.0,0.00028203,2]
[362077249,1747978243620,-200.0,0.00028203,117]
[362077251,1747978243629,-3985.41,0.00028203,2]
[362077252,1747978243638,-405.44,0.00028673,2]
[362077255,1747978243650,-1500.0,0.00028689,2]
[362077257,1747978243659,-1545.64582138,0.00028831,19]
[362077259,1747978243667,-250.0,0.00028871,2]
[362077260,1747978243676,-150.0,0.00028879,7]
[362077262,1747978243686,-178.1,0.00029009,120]
[362077265,1747978243696,-234.92,0.00029222,2]
[362077267,1747978243706,-159.414931,0.0002923,4]
[362077268,1747978243715,-596.52664564,0.00029409,5]
[362077270,1747978243724,-2363.56,0.000295,10]
[362077272,1747978243733,-200.0,0.000295,10]
[362077274,1747978243742,-171.38,0.00029534,2]
[362077276,1747978243751,-500.0,0.000296,10]
[362077278,1747978243760,-1545.64582138,0.00029659,21]
[362077280,1747978243769,-596.52664563,0.000297,5]
[362077282,1747978243779,-700.0,0.000297,10]
[362077284,1747978243788,-1000.0,0.000298,10]
[362077286,1747978243797,-1200.0,0.000299,10]
[362077288,1747978243806,-158.38332189,0.000299,15]
[362077290,1747978243815,-489.02860153,0.000299,2]
[362077292,1747978243825,-758.55018522,0.000299,2]
[362077295,1747978243835,-758.55018522,0.00029968,2]
[362077296,1747978243844,-501.58492468,0.00029973,5]
[362077299,1747978243853,-489.02860151,0.00029983,2]
[362077300,1747978243862,-5495.61080364,0.0002999,3]
[362077302,1747978243872,-10604.6161365,0.0002999,3]
[362077304,1747978243881,-475.758,0.0002999,24]
[362077306,1747978243889,-13255.7701706,0.0002999,3]
[362077308,1747978243898,-5000.0,0.0003,7]
[362077310,1747978243907,-250000.0,0.0003,2]
[362077312,1747978243916,-151.0,0.0003,7]
[362077314,1747978243925,-1202.21960287,0.0003,2]
[362077316,1747978243934,-380.589038,0.0003,7]
[362077318,1747978243943,-380.589038,0.0003,7]
[362077320,1747978243953,-758.55018522,0.00030036,2]
[362077322,1747978243962,-2250.0,0.00030036,2]
[362077324,1747978243971,-1000.0,0.00030063,2]
[362077326,1747978243980,-489.02860151,0.00030066,2]